[Event "FIDE World Rapid-ch Open 2018"]
[White "Najer, Evgeniy"]
[Black "Potapov, Pavel"]
[Site "St. Petersburg"]
[Round "10.48"]
[Annotator "ChessBase"]
[Result "1/2-1/2"]
[Date "2018.12.27"]
[WhiteElo "2670"]
[BlackElo "2516"]
[PlyCount "86"]
[TimeControl "900+10"]

1. e4 {[%emt 0:0:0]} c5 {[%emt 0:0:0]} 2. Nf3 {[%emt 0:0:0]} Nc6 {[%emt 0:0:0]
} 3. Bb5 {[%emt 0:0:0]} g6 {[%emt 0:0:0]} 4. 0-0 {[%emt 0:0:0]} Bg7 {[%emt 0:0:0]} 5. c3 {[%emt 0:0:2]} Nf6 {[%emt 0:0:22]} 6. Qa4 {[%emt 0:0:1]
} 0-0 {[%emt 0:0:26]} 7. d4 {[%emt 0:0:6]} cxd4 {[%emt 0:0:0]} 8. cxd4 {[%emt 0:0:2]} Nxe4 {[%emt 0:4:32]} 9. d5 {[%emt 0:0:4]} Nc5 {[%emt 0:0:3]} 10. Qa3 {[%emt 0:3:52]} Qb6 {[%emt 0:0:24]} 11. Nc3 {[%emt 0:0:4]
} Nd4 {[%emt 0:0:35]} 12. Nxd4 {[%emt 0:0:3]} Bxd4 {[%emt 0:0:0]} 13. Bh6 {[%emt 0:0:2]} d6 {[%emt 0:0:17]} 14. Bxf8 {[%emt 0:0:29]} Kxf8 {[%emt 0:0:2]} 15. Rad1 {[%emt 0:0:11]} Be5 {[%emt 0:0:26]} 16. b4 {[%emt 0:2:11]
} Nd7 {[%emt 0:1:46]} 17. Be2 {[%emt 0:0:45]} Bg7 {[%emt 0:0:0]} 18. Na4 {[%emt 0:0:35]} Qd8 {[%emt 0:0:10]} 19. Bg4 {[%emt 0:2:13]} b6 {[%emt 0:1:54]} 20. Nc3 {[%emt 0:1:5]} Bb7 {[%emt 0:0:12]} 21. Rc1 {[%emt 0:0:34]
} h5 {[%emt 0:0:33]} 22. Be2 {[%emt 0:0:18]} a6 {[%emt 0:0:9]
} 23. Rfd1 {[%emt 0:0:38]} Kg8 {[%emt 0:0:34]} 24. Ne4 {[%emt 0:0:26]} b5 {[%emt 0:0:17]
} 25. Qb3 {[%emt 0:1:13]} Nb6 {[%emt 0:0:17]} 26. Bf3 {[%emt 0:0:0]} Nc4 {[%emt 0:0:6]} 27. Be2 {[%emt 0:0:17]} Nb6 {[%emt 0:0:3]} 28. h4 {[%emt 0:0:35]} e6 {[%emt 0:0:57]} 29. Qg3 {[%emt 0:1:40]} Bxd5 {[%emt 0:0:0]} 30. Nxd6 {[%emt 0:0:8]} Qe7 {[%emt 0:0:15]} 31. Bf3 {[%emt 0:0:16]} Rd8 {[%emt 0:0:15]} 32. Bxd5 {[%emt 0:0:14]} Nxd5 {[%emt 0:0:10]} 33. Ne4 {[%emt 0:0:19]
} Qxb4 {[%emt 0:0:5]} 34. Qf3 {[%emt 0:0:8]} Qe7 {[%emt 0:0:0]} 35. g3 {[%emt 0:0:1]} b4 {[%emt 0:0:7]} 36. Rc6 {[%emt 0:0:16]} a5 {[%emt 0:0:5]
} 37. Ra6 {[%emt 0:0:8]} Qc7 {[%emt 0:0:16]} 38. Ng5 {[%emt 0:0:0]} Rf8 {[%emt 0:1:1]} 39. Kg2 {[%emt 0:0:17]} Bh6 {[%emt 0:0:10]} 40. Ne4 {[%emt 0:0:24]} Bg7 {[%emt 0:0:3]} 41. Ng5 {[%emt 0:0:4]} Bh6 {[%emt 0:0:3]
} 42. Ne4 {[%emt 0:0:1]} Bg7 {[%emt 0:0:3]} 43. Ng5 {[%emt 0:0:0]} Bh6 {[%emt 0:0:3]} 1/2-1/2

[Event "FIDE World Rapid-ch Open 2018"]
[White "Demchenko, Anton"]
[Black "Kevlishvili, Robby"]
[Site "St. Petersburg"]
[Round "10.49"]
[Annotator "ChessBase"]
[Result "1/2-1/2"]
[Date "2018.12.27"]
[WhiteElo "2679"]
[BlackElo "2451"]
[PlyCount "155"]
[TimeControl "900+10"]

1. e4 {[%emt 0:0:0]} c5 {[%emt 0:0:0]} 2. Nf3 {[%emt 0:0:0]} d6 {[%emt 0:0:0]} 3. d4 {[%emt 0:0:0]} cxd4 {[%emt 0:0:1]} 4. Qxd4 {[%emt 0:0:0]} a6 {[%emt 0:0:14]} 5. Be2 {[%emt 0:0:0]} Nc6 {[%emt 0:0:6]} 6. Qe3 {[%emt 0:0:2]
} Bg4 {[%emt 0:0:4]} 7. 0-0 {[%emt 0:0:8]} Nf6 {[%emt 0:0:0]} 8. Rd1 {[%emt 0:0:35]} Nd7 {[%emt 0:1:21]} 9. c4 {[%emt 0:0:36]} e6 {[%emt 0:2:10]
} 10. Nc3 {[%emt 0:0:59]} Be7 {[%emt 0:0:5]} 11. b3 {[%emt 0:0:0]} 0-0 {[%emt 0:0:14]} 12. Bb2 {[%emt 0:1:19]} Qa5 {[%emt 0:1:29]} 13. a3 {[%emt 0:3:26]} Bxf3 {[%emt 0:0:59]} 14. Bxf3 {[%emt 0:0:42]} Rac8 {[%emt 0:0:19]
} 15. Be2 {[%emt 0:1:39]} Qb6 {[%emt 0:0:37]} 16. Qxb6 {[%emt 0:0:15]
} Nxb6 {[%emt 0:0:1]} 17. Rab1 {[%emt 0:0:44]} Na5 {[%emt 0:0:0]} 18. Bc1 {[%emt 0:0:37]} Nd7 {[%emt 0:0:42]} 19. Bd2 {[%emt 0:0:36]} Nc6 {[%emt 0:1:22]} 20. Be3 {[%emt 0:0:2]} Rfd8 {[%emt 0:0:49]} 21. f4 {[%emt 0:0:6]
} Bf6 {[%emt 0:1:17]} 22. Na2 {[%emt 0:0:7]} Nc5 {[%emt 0:0:0]} 23. e5 {[%emt 0:0:27]} Be7 {[%emt 0:0:5]} 24. exd6 {[%emt 0:0:16]} Rxd6 {[%emt 0:0:7]} 25. Rxd6 {[%emt 0:0:5]} Bxd6 {[%emt 0:0:1]} 26. b4 {[%emt 0:0:1]
} Ne4 {[%emt 0:0:16]} 27. Bf3 {[%emt 0:0:14]} Nf6 {[%emt 0:0:0]} 28. Rd1 {[%emt 0:0:26]} Bf8 {[%emt 0:0:5]} 29. Nc1 {[%emt 0:0:53]} Ne8 {[%emt 0:1:11]} 30. c5 Nf6 {[%emt 0:0:37]} 31. Nb3 {[%emt 0:1:14]} Rd8 {[%emt 0:0:13]
} 32. Rxd8 {[%emt 0:0:32]} Nxd8 {[%emt 0:0:1]} 33. Bd4 {[%emt 0:0:43]
} Nd5 {[%emt 0:0:16]} 34. f5 {[%emt 0:0:13]} Nc6 {[%emt 0:0:0]} 35. Bb2 {[%emt 0:0:47]} Be7 {[%emt 0:0:14]} 36. Kf2 {[%emt 0:0:31]} Kf8 {[%emt 0:0:31]} 37. Bg4 {[%emt 0:0:15]} Bf6 {[%emt 0:0:39]} 38. Bxf6 {[%emt 0:0:3]
} Nxf6 {[%emt 0:0:1]} 39. Bf3 {[%emt 0:0:0]} Ke7 {[%emt 0:0:0]} 40. fxe6 {[%emt 0:0:11]} fxe6 {[%emt 0:0:18]} 41. Nd2 {[%emt 0:0:18]} Nd5 {[%emt 0:0:34]} 42. Nc4 {[%emt 0:0:1]} Kd7 {[%emt 0:0:10]} 43. Be4 {[%emt 0:0:7]
} g6 {[%emt 0:0:17]} 44. h4 {[%emt 0:0:14]} Nd4 {[%emt 0:0:45]
} 45. g4 {[%emt 0:0:24]} Nb5 {[%emt 0:0:48]} 46. g5 {[%emt 0:0:16]} Nbc3 {[%emt 0:0:28]
} 47. Bd3 {[%emt 0:0:24]} Nf4 {[%emt 0:0:22]} 48. Bc2 {[%emt 0:0:0]} Ncd5 {[%emt 0:0:13]} 49. Kf3 {[%emt 0:0:5]} Nh5 {[%emt 0:0:25]} 50. Nd6 {[%emt 0:1:25]} b6 {[%emt 0:0:15]} 51. Ne4 {[%emt 0:0:22]} a5 {[%emt 0:0:0]} 52. b5 {[%emt 0:0:46]} bxc5 {[%emt 0:0:11]} 53. Nxc5+ {[%emt 0:0:1]
} Kd6 {[%emt 0:0:1]} 54. Ne4+ {[%emt 0:0:5]} Ke5 {[%emt 0:0:12]} 55. Bb3 {[%emt 0:0:13]
} Nb6 {[%emt 0:0:9]} 56. Nd2 {[%emt 0:0:17]} a4 {[%emt 0:0:0]} 57. Nc4+ {[%emt 0:0:14]} Kd4 {[%emt 0:0:12]} 58. Nxb6 {[%emt 0:0:2]} axb3 {[%emt 0:0:1]} 59. Na4 {[%emt 0:0:1]} Kd5 {[%emt 0:0:12]} 60. b6 {[%emt 0:0:5]
} Kc6 {[%emt 0:0:0]} 61. b7 {[%emt 0:0:30]} Kxb7 62. Nc5+ Kc6 {[%emt 0:0:2]} 63. Nxb3 {[%emt 0:0:1]} Ng7 {[%emt 0:0:5]} 64. Ke4 {[%emt 0:0:14]
} Nf5 {[%emt 0:0:23]} 65. Nd4+ {[%emt 0:0:1]} Kd6 {[%emt 0:0:0]} 66. Nf3 {[%emt 0:0:1]} e5 {[%emt 0:0:6]} 67. Nd2 {[%emt 0:0:45]} Nxh4 {[%emt 0:0:41]} 68. Nc4+ {[%emt 0:0:2]} Kc5 {[%emt 0:0:0]} 69. Nxe5 {[%emt 0:0:2]
} Nf5 {[%emt 0:0:2]} 70. Ng4 {[%emt 0:0:5]} Nd6+ {[%emt 0:0:0]} 71. Kf4 {[%emt 0:0:15]} Kb5 {[%emt 0:0:18]} 72. Nh6 {[%emt 0:0:17]} Ka4 {[%emt 0:0:13]} 73. Ke5 {[%emt 0:0:2]} Nc4+ {[%emt 0:0:3]} 74. Kf6 {[%emt 0:0:4]
} Nd2 {[%emt 0:0:1]} 75. Kg7 {[%emt 0:0:14]} Ne4 {[%emt 0:0:0]} 76. Kxh7 {[%emt 0:0:0]} Nxg5+ {[%emt 0:0:2]} 77. Kxg6 {[%emt 0:0:1]} Kxa3 {[%emt 0:0:1]} 78. Kxg5 {[%emt 0:0:1]} 1/2-1/2

[Event "FIDE World Rapid-ch Open 2018"]
[White "Adly, Ahmed"]
[Black "Zhigalko, Andrey"]
[Site "St. Petersburg"]
[Round "10.50"]
[Annotator "ChessBase"]
[Result "1-0"]
[Date "2018.12.27"]
[WhiteElo "2626"]
[BlackElo "2545"]
[PlyCount "153"]
[TimeControl "900+10"]

1. d4 {[%emt 0:0:0]} Nf6 {[%emt 0:0:0]} 2. Nf3 {[%emt 0:0:0]} d5 {[%emt 0:0:0]
} 3. g3 {[%emt 0:0:1]} c5 {[%emt 0:0:0]} 4. Bg2 {[%emt 0:0:0]} cxd4 {[%emt 0:0:0]} 5. 0-0 {[%emt 0:0:3]} h6 {[%emt 0:0:0]} 6. Nxd4 {[%emt 0:0:15]} e5 {[%emt 0:0:0]} 7. Nf3 {[%emt 0:0:4]} Nc6 {[%emt 0:0:0]} 8. b3 {[%emt 0:0:1]} Bc5 {[%emt 0:1:56]} 9. Bb2 {[%emt 0:0:18]} Qe7 {[%emt 0:0:45]
} 10. c4 {[%emt 0:0:30]} d4 {[%emt 0:0:49]} 11. Ne1 {[%emt 0:0:0]} e4 {[%emt 0:7:33]} 12. f3 {[%emt 0:3:59]} d3+ {[%emt 0:2:15]} 13. Kh1 {[%emt 0:0:2]} dxe2 {[%emt 0:0:54]} 14. Qxe2 {[%emt 0:0:2]} Nd4 {[%emt 0:0:1]
} 15. Qd1 {[%emt 0:0:52]} e3 {[%emt 0:0:32]} 16. Nc3 {[%emt 0:0:0]} Bf5 {[%emt 0:1:34]} 17. b4 {[%emt 0:0:1]} 0-0-0 {[%emt 0:0:38]} 18. bxc5 {[%emt 0:0:2]} e2 {[%emt 0:0:2]} 19. Nxe2 {[%emt 0:0:10]} Nxe2 {[%emt 0:0:2]
} 20. Qa4 {[%emt 0:0:10]} Qxc5 {[%emt 0:0:7]} 21. Ba3 {[%emt 0:0:28]
} Qd4 {[%emt 0:0:32]} 22. Nc2 {[%emt 0:0:7]} Qd7 {[%emt 0:0:0]} 23. Qb3 {[%emt 0:0:12]} Qd3 {[%emt 0:0:10]} 24. Ne3 {[%emt 0:0:1]} Qxb3 {[%emt 0:0:11]} 25. axb3 {[%emt 0:0:1]} Be6 {[%emt 0:0:14]} 26. Be7 {[%emt 0:0:10]
} Rd3 {[%emt 0:0:10]} 27. Rxa7 {[%emt 0:0:8]} Rxe3 {[%emt 0:0:0]} 28. Bxf6 {[%emt 0:0:2]} Kb8 {[%emt 0:0:9]} 29. Rfa1 {[%emt 0:0:6]
} gxf6 {[%emt 0:0:9]} 30. Ra8+ {[%emt 0:0:1]} Kc7 {[%emt 0:0:1]} 31. Rxh8 {[%emt 0:0:1]} Rxb3 {[%emt 0:0:12]} 32. Rxh6 {[%emt 0:0:2]} f5 {[%emt 0:0:0]} 33. c5 {[%emt 0:0:28]} Rc3 {[%emt 0:0:13]} 34. Rh4 {[%emt 0:0:49]} Rxc5 {[%emt 0:0:16]} 35. Re1 {[%emt 0:0:5]} Nc3 {[%emt 0:0:9]} 36. Rh7 {[%emt 0:0:7]
} Kd6 {[%emt 0:0:11]} 37. Rh4 {[%emt 0:0:28]} b5 {[%emt 0:0:0]} 38. Bf1 {[%emt 0:0:5]} Nd5 {[%emt 0:0:17]} 39. Rb1 {[%emt 0:0:12]} Nc3 {[%emt 0:0:13]} 40. Rb2 {[%emt 0:0:11]} Bd5 {[%emt 0:0:8]} 41. Rf4 {[%emt 0:0:20]
} Nd1 {[%emt 0:0:13]} 42. Rb1 {[%emt 0:0:34]} Nc3 {[%emt 0:0:0]} 43. Ra1 {[%emt 0:0:4]} Ke5 {[%emt 0:0:16]} 44. Re1+ {[%emt 0:0:20]} Kf6 {[%emt 0:0:4]} 45. Kg1 {[%emt 0:0:20]} Be6 {[%emt 0:0:8]} 46. Rb4 {[%emt 0:0:2]
} Bc4 {[%emt 0:0:15]} 47. Bxc4 {[%emt 0:2:25]} bxc4 {[%emt 0:0:0]} 48. Rb6+ {[%emt 0:0:1]} Kg7 {[%emt 0:0:2]} 49. Rd6 {[%emt 0:0:1]} Nb5 {[%emt 0:0:14]} 50. Rd7 {[%emt 0:0:6]} c3 {[%emt 0:0:8]} 51. Rc1 {[%emt 0:0:7]
} f4 {[%emt 0:0:15]} 52. gxf4 {[%emt 0:0:12]} Rc4 {[%emt 0:0:0]} 53. Kf2 {[%emt 0:0:36]} Nd4 {[%emt 0:0:15]} 54. Ke3 {[%emt 0:1:3]} Nb3 {[%emt 0:0:3]} 55. Rc2 {[%emt 0:0:3]} Na1 {[%emt 0:0:16]} 56. Kd3 {[%emt 0:0:3]
} Rxf4 {[%emt 0:0:5]} 57. Rg2+ {[%emt 0:0:23]} Kf6 {[%emt 0:0:0]} 58. Kxc3 {[%emt 0:0:2]} Rxf3+ {[%emt 0:0:3]} 59. Rd3 {[%emt 0:0:0]} Rxd3+ {[%emt 0:0:6]} 60. Kxd3 {[%emt 0:0:1]} Nb3 {[%emt 0:0:1]} 61. Kc4 {[%emt 0:0:3]} Na5+ {[%emt 0:0:4]} 62. Kd5 {[%emt 0:0:1]} Nb7 {[%emt 0:0:11]
} 63. Rg8 {[%emt 0:0:14]} Ke7 {[%emt 0:0:17]} 64. h4 {[%emt 0:0:0]} Nd6 {[%emt 0:0:20]} 65. h5 {[%emt 0:0:27]} Nf5 {[%emt 0:0:19]} 66. Ke5 {[%emt 0:0:14]} Nh6 {[%emt 0:0:4]} 67. Rh8 {[%emt 0:0:2]} f6+ {[%emt 0:0:17]
} 68. Kf4 {[%emt 0:0:6]} Nf7 {[%emt 0:0:6]} 69. Ra8 {[%emt 0:0:0]} Nh6 {[%emt 0:0:14]} 70. Rh8 {[%emt 0:0:17]} Nf7 {[%emt 0:0:5]} 71. Rg8 {[%emt 0:0:2]} Ke6 {[%emt 0:0:20]} 72. Rg7 {[%emt 0:0:12]} Nh6 {[%emt 0:0:9]
} 73. Rg6 {[%emt 0:0:1]} Nf7 {[%emt 0:0:8]} 74. h6 {[%emt 0:0:0]} Ng5 {[%emt 0:0:13]} 75. Rg7 {[%emt 0:0:5]} Nf7 {[%emt 0:0:9]} 76. h7 {[%emt 0:0:5]} Nh8 {[%emt 0:0:4]} 77. Rg8 {[%emt 0:0:2]} 1-0

[Event "FIDE World Rapid-ch Open 2018"]
[White "Oganian, Miran"]
[Black "Amin, Bassem"]
[Site "St. Petersburg"]
[Round "10.51"]
[Annotator "ChessBase"]
[Result "0-1"]
[Date "2018.12.27"]
[WhiteElo "2423"]
[BlackElo "2710"]
[PlyCount "120"]
[TimeControl "900+10"]

1. d4 {[%emt 0:0:0]} Nf6 {[%emt 0:0:0]} 2. c4 {[%emt 0:0:0]} g6 {[%emt 0:0:0]} 3. Nc3 {[%emt 0:0:0]} Bg7 {[%emt 0:0:0]} 4. e4 {[%emt 0:0:0]} d6 {[%emt 0:0:0]} 5. Nf3 {[%emt 0:0:0]} 0-0 {[%emt 0:0:0]} 6. Be2 {[%emt 0:0:0]} e5 {[%emt 0:0:0]} 7. Be3 {[%emt 0:0:1]} Ng4 {[%emt 0:0:7]} 8. Bg5 {[%emt 0:0:2]} f6 {[%emt 0:0:0]} 9. Bh4 {[%emt 0:0:1]} Nc6 {[%emt 0:0:0]} 10. d5 {[%emt 0:0:2]} Ne7 {[%emt 0:0:1]} 11. Nd2 {[%emt 0:0:6]} h5 {[%emt 0:0:2]
} 12. h3 {[%emt 0:0:10]} Nh6 {[%emt 0:0:1]} 13. g4 {[%emt 0:0:0]} hxg4 {[%emt 0:0:34]} 14. hxg4 {[%emt 0:0:2]} c5 {[%emt 0:0:46]} 15. g5 {[%emt 0:1:2]} fxg5 {[%emt 0:0:13]} 16. Bxg5 {[%emt 0:0:3]} Nf7 {[%emt 0:0:3]
} 17. Be3 {[%emt 0:0:22]} Bf6 {[%emt 0:0:11]} 18. Rg1 {[%emt 0:0:0]} Kg7 {[%emt 0:0:21]} 19. Nf1 {[%emt 0:0:33]} Rh8 {[%emt 0:0:2]} 20. Qd2 {[%emt 0:0:10]} a6 {[%emt 0:0:6]} 21. Ng3 {[%emt 0:0:20]} Kf8 {[%emt 0:0:0]} 22. 0-0-0 {[%emt 0:0:36]} b5 {[%emt 0:0:19]} 23. Rdf1 {[%emt 0:1:13]
} Bh3 {[%emt 0:0:3]} 24. Re1 {[%emt 0:0:2]} bxc4 {[%emt 0:1:38]} 25. Bxc4 {[%emt 0:0:8]} Rb8 {[%emt 0:0:8]} 26. Rh1 {[%emt 0:0:36]} Rh4 {[%emt 0:0:0]} 27. Rh2 {[%emt 0:0:22]} Ng8 {[%emt 0:2:36]} 28. Bxa6 {[%emt 0:1:45]} Bd7 {[%emt 0:1:30]} 29. Rxh4 {[%emt 0:0:24]} Bxh4 {[%emt 0:0:1]} 30. Rg1 {[%emt 0:0:10]
} Nf6 {[%emt 0:1:7]} 31. f3 {[%emt 0:2:17]} Nh7 {[%emt 0:0:0]} 32. Nf1 {[%emt 0:1:21]} Bg5 {[%emt 0:0:38]} 33. Be2 {[%emt 0:0:27]} Qf6 {[%emt 0:0:12]} 34. Bxg5 {[%emt 0:0:34]} Nhxg5 {[%emt 0:0:4]} 35. Qe3 {[%emt 0:0:8]
} Kg7 {[%emt 0:0:22]} 36. Rh1 {[%emt 0:0:36]} Nh3 {[%emt 0:0:0]} 37. Nd2 {[%emt 0:0:8]} Nf4 {[%emt 0:0:15]} 38. Bf1 {[%emt 0:0:15]} Ng5 {[%emt 0:0:19]} 39. Ne2 {[%emt 0:0:31]} Nf7 {[%emt 0:2:54]} 40. Nc4 {[%emt 0:1:28]
} Bb5 {[%emt 0:0:32]} 41. Nxf4 {[%emt 0:1:4]} exf4 {[%emt 0:0:0]} 42. Qc3 {[%emt 0:0:7]} Qxc3+ {[%emt 0:0:27]} 43. bxc3 {[%emt 0:0:0]} Bxc4 {[%emt 0:0:4]} 44. Bxc4 {[%emt 0:0:2]} Ne5 {[%emt 0:0:1]} 45. Be2 {[%emt 0:0:3]} g5 {[%emt 0:0:3]} 46. Kc2 {[%emt 0:0:38]} Ra8 {[%emt 0:0:0]} 47. Kb3 {[%emt 0:0:10]} c4+ {[%emt 0:0:6]} 48. Kb2 {[%emt 0:0:15]} Kg6 {[%emt 0:0:10]} 49. Rh3 {[%emt 0:0:54]} Rb8+ {[%emt 0:0:2]} 50. Kc2 {[%emt 0:0:4]
} Rf8 {[%emt 0:0:1]} 51. Rh1 {[%emt 0:0:58]} Ra8 {[%emt 0:0:0]} 52. Kb2 {[%emt 0:0:7]} g4 {[%emt 0:0:30]} 53. fxg4 {[%emt 0:0:2]} f3 {[%emt 0:0:1]} 54. Bf1 {[%emt 0:0:9]} Kg5 {[%emt 0:0:5]} 55. Rh5+ {[%emt 0:0:45]
} Kf4 {[%emt 0:0:4]} 56. Rh6 {[%emt 0:0:22]} Nd3+ {[%emt 0:0:0]} 57. Ka1 {[%emt 0:0:14]} Ra3 {[%emt 0:0:5]} 58. Rxd6 {[%emt 0:0:18]} Rxc3 {[%emt 0:0:2]} 59. Bxd3 cxd3 {[%emt 0:0:4]} 60. Kb2 {[%emt 0:0:10]} d2 {[%emt 0:0:13]} 0-1

[Event "FIDE World Rapid-ch Open 2018"]
[White "Kovalev, Vladislav"]
[Black "AL-Sayed, Mohammed"]
[Site "St. Petersburg"]
[Round "10.52"]
[Annotator "ChessBase"]
[Result "1-0"]
[Date "2018.12.27"]
[WhiteElo "2683"]
[BlackElo "2484"]
[PlyCount "97"]
[TimeControl "900+10"]

1. e4 {[%emt 0:0:0]} c5 {[%emt 0:0:0]} 2. Be2 {[%emt 0:0:0]} Nc6 {[%emt 0:0:7]
} 3. d3 {[%emt 0:0:0]} Nf6 {[%emt 0:0:43]} 4. f4 {[%emt 0:0:0]} Nd4 {[%emt 0:1:15]} 5. Nf3 {[%emt 0:0:0]} Nxe2 {[%emt 0:0:2]} 6. Qxe2 {[%emt 0:0:0]} e6 {[%emt 0:0:1]} 7. b3 {[%emt 0:2:1]} d5 {[%emt 0:0:8]} 8. Bb2 {[%emt 0:0:1]} Be7 {[%emt 0:0:33]} 9. 0-0 {[%emt 0:0:4]} d4 {[%emt 0:0:27]
} 10. Nbd2 {[%emt 0:0:14]} b6 {[%emt 0:0:39]} 11. a4 {[%emt 0:0:0]} Bb7 {[%emt 0:0:7]} 12. Nc4 {[%emt 0:0:4]} 0-0 {[%emt 0:0:12]} 13. c3 {[%emt 0:2:51]} dxc3 {[%emt 0:0:13]} 14. Bxc3 {[%emt 0:0:1]} Qc7 {[%emt 0:1:15]
} 15. Nfe5 {[%emt 0:0:15]} Nd7 {[%emt 0:1:35]} 16. Qg4 {[%emt 0:0:34]
} f5 {[%emt 0:0:7]} 17. Qh3 {[%emt 0:1:3]} Nxe5 {[%emt 0:0:0]} 18. Bxe5 {[%emt 0:0:6]} Qd7 {[%emt 0:0:5]} 19. Rad1 {[%emt 0:0:30]} Rad8 {[%emt 0:0:20]} 20. Rfe1 {[%emt 0:1:59]} Bf6 {[%emt 0:0:53]} 21. Nd6 {[%emt 0:0:14]
} Bc6 {[%emt 0:0:47]} 22. exf5 {[%emt 0:1:22]} exf5 {[%emt 0:0:0]} 23. d4 {[%emt 0:0:35]} cxd4 {[%emt 0:2:6]} 24. Rxd4 {[%emt 0:0:1]} Bxe5 {[%emt 0:0:10]} 25. Rxe5 {[%emt 0:0:3]} Be4 {[%emt 0:2:37]} 26. Qc3 {[%emt 0:0:54]
} Qc6 {[%emt 0:2:44]} 27. Qxc6 {[%emt 0:0:2]} Bxc6 {[%emt 0:0:0]} 28. Nxf5 {[%emt 0:0:3]} Rxd4 {[%emt 0:0:12]} 29. Nxd4 {[%emt 0:0:0]} Bd7 {[%emt 0:0:1]} 30. Rd5 {[%emt 0:2:9]} Bc8 {[%emt 0:0:1]} 31. g3 {[%emt 0:0:25]} Kf7 {[%emt 0:0:5]} 32. Kf2 {[%emt 0:0:14]} Bg4 {[%emt 0:0:0]} 33. Nc6 {[%emt 0:1:37]} Be6 {[%emt 0:0:15]} 34. Nd8+ {[%emt 0:1:33]} Ke7 {[%emt 0:0:1]} 35. Nxe6 {[%emt 0:0:1]} Kxe6 {[%emt 0:0:1]} 36. Re5+ {[%emt 0:0:8]
} Kd6 {[%emt 0:0:1]} 37. Rg5 {[%emt 0:0:26]} Rf7 {[%emt 0:0:0]} 38. Ke3 {[%emt 0:0:7]} Rc7 {[%emt 0:0:40]} 39. Kd4 {[%emt 0:0:9]} Ke6 {[%emt 0:0:5]} 40. g4 {[%emt 0:0:43]} Rf7 {[%emt 0:0:40]} 41. Re5+ {[%emt 0:0:6]
} Kd6 {[%emt 0:0:1]} 42. f5 {[%emt 0:0:6]} Kc7 {[%emt 0:0:0]} 43. Re6 {[%emt 0:0:30]} Kd7 {[%emt 0:0:15]} 44. Kd5 {[%emt 0:0:32]} Rf8 {[%emt 0:0:1]} 45. Rd6+ {[%emt 0:0:12]} Kc7 {[%emt 0:0:1]} 46. b4 {[%emt 0:0:10]
} Re8 {[%emt 0:0:10]} 47. Re6 {[%emt 0:0:3]} Rd8+ {[%emt 0:0:0]} 48. Ke5 {[%emt 0:0:1]} Rd7 {[%emt 0:0:23]} 49. g5 {[%emt 0:0:2]} 1-0